bitfinex/quotes_BTCUSD_20250604
["timestamp","ask_amount","ask_price","bid_price","bid_amount"]
[1749056042630,2.49874183,105340.0,105330.0,0.40248]
[1749056043054,2.48985315,105340.0,105330.0,0.40248]
[1749056044583,2.49874183,105340.0,105330.0,0.40248]
[1749056044792,2.48985315,105340.0,105330.0,0.40248]
[1749056046154,2.48985315,105340.0,105330.0,1.00248]
[1749056046812,2.44985315,105340.0,105330.0,1.00248]
[1749056047045,2.45874224,105340.0,105330.0,1.00248]
[1749056047279,2.44985315,105340.0,105330.0,1.00248]
[1749056048773,2.45874224,105340.0,105330.0,1.00248]
[1749056048990,2.44985315,105340.0,105330.0,1.00248]
[1749056049200,2.45874267,105340.0,105330.0,1.00248]
[1749056049420,2.44985315,105340.0,105330.0,1.00248]
[1749056050494,2.45874267,105340.0,105330.0,1.00248]
[1749056050732,2.44985315,105340.0,105330.0,1.00248]
[1749056050949,2.45874267,105340.0,105330.0,1.00248]
[1749056051362,2.44985315,105340.0,105330.0,1.00248]
[1749056051536,2.45874267,105340.0,105330.0,1.00248]
[1749056052323,2.46763219,105340.0,105330.0,1.00248]
[1749056052541,2.45874267,105340.0,105330.0,1.00248]
[1749056052941,2.46763214,105340.0,105330.0,1.00248]
[1749056053150,2.45874267,105340.0,105330.0,1.00248]
[1749056053772,2.41874267,105340.0,105330.0,1.00248]
[1749056054412,2.42763217,105340.0,105330.0,1.00248]
[1749056054613,2.41874267,105340.0,105330.0,1.00248]
[1749056055459,2.41874267,105340.0,105330.0,1.0024]
[1749056056141,2.42763217,105340.0,105330.0,1.0024]
[1749056056562,2.41874267,105340.0,105330.0,1.0024]
[1749056059397,0.43049824,105340.0,105330.0,1.0352]
[1749056059654,0.43049824,105340.0,105330.0,1.14559515]
[1749056059655,0.02666272,105340.0,105330.0,1.14559515]
[1749056060086,0.02666272,105340.0,105330.0,1.22153611]
[1749056060334,0.02666272,105340.0,105330.0,0.81913611]
[1749056060540,0.02666272,105340.0,105330.0,1.01669611]
[1749056060757,0.56702322,105340.0,105330.0,1.01669611]
[1749056060976,0.52702322,105340.0,105330.0,1.03557611]
[1749056061420,0.52702322,105340.0,105330.0,1.43557611]
[1749056061633,0.52702322,105340.0,105330.0,1.27913611]
[1749056062028,0.52702322,105340.0,105330.0,1.43757611]
[1749056062242,0.52702322,105340.0,105330.0,1.44057611]
[1749056062693,0.52702322,105340.0,105330.0,1.46945397]
[1749056063798,6e-05,105360.0,105350.0,0.6309]
[1749056064019,1.08082889,105360.0,105350.0,0.7873]
[1749056064234,1.08082889,105360.0,105350.0,1.03322]
[1749056064455,1.08082889,105360.0,105350.0,1.1290743]
[1749056064936,1.08082889,105360.0,105350.0,1.5290743]
[1749056066058,1.08082889,105360.0,105350.0,1.3315543]
[1749056066282,1.08082889,105360.0,105350.0,1.41772]
[1749056066722,1.08082889,105360.0,105350.0,1.43362]
[1749056067639,0.00010789,105360.0,105350.0,1.43362]
[1749056067859,1.08082889,105360.0,105350.0,1.43362]
[1749056068095,0.5403605,105360.0,105350.0,1.43362]
[1749056068314,1.080721,105360.0,105350.0,1.41772]
[1749056068993,1.080721,105360.0,105350.0,1.2202]
[1749056069199,1.080721,105360.0,105350.0,1.41768]
[1749056069837,1.080721,105360.0,105350.0,1.2202]
[1749056070081,1.080721,105360.0,105350.0,1.4176]
[1749056070987,0.04155844,105370.0,105350.0,1.4176]
[1749056071185,1.080721,105360.0,105350.0,1.4176]
[1749056072358,0.07295844,105370.0,105350.0,1.4176]
[1749056072595,1.420721,105360.0,105350.0,1.4337]
[1749056073932,1.420721,105360.0,105350.0,1.0337]
[1749056075382,1.420721,105360.0,105350.0,1.0022]
[1749056075586,1.420721,105360.0,105350.0,0.84584]
[1749056075799,1.420721,105360.0,105350.0,1.0022]
[1749056076415,1.420721,105360.0,105350.0,1.0175]
[1749056077686,1.420721,105360.0,105350.0,1.0022]
[1749056078027,1.420721,105360.0,105350.0,0.8048]
[1749056078228,1.420721,105360.0,105350.0,0.7022]
[1749056078436,1.420721,105360.0,105350.0,1.0022]
[1749056078718,1.420721,105360.0,105350.0,1.4022]
[1749056080285,0.34,105360.0,105350.0,1.4022]
[1749056080497,1.420721,105360.0,105350.0,1.4173]
[1749056080938,1.420721,105360.0,105350.0,1.2199]
[1749056081176,1.420721,105360.0,105350.0,1.41726]
[1749056083129,1.080721,105360.0,105350.0,1.41726]
[1749056083753,0.07395844,105370.0,105350.0,1.41726]
[1749056083880,1.080721,105360.0,105350.0,1.41726]
[1749056086336,0.41395844,105370.0,105350.0,1.41726]
[1749056086547,1.080721,105360.0,105350.0,1.41726]
[1749056088311,1.420721,105360.0,105350.0,1.41726]
[1749056090054,1.380721,105360.0,105350.0,1.41726]
[1749056092566,1.380721,105360.0,105350.0,1.43366]
[1749056092727,0.34,105360.0,105350.0,1.54405515]
[1749056092931,0.3556541,105370.0,105360.0,0.0307]
[1749056093175,0.3556541,105370.0,105360.0,0.2828743]
[1749056093176,0.8960146,105370.0,105360.0,0.2828743]
[1749056094179,0.5560146,105370.0,105360.0,0.2828743]
[1749056097195,0.5160146,105370.0,105360.0,0.2828743]
[1749056098124,0.3721,105380.0,105370.0,0.6]
[1749056098363,1.42960275,105380.0,105370.0,0.6]
[1749056098601,1.42960275,105380.0,105370.0,0.64104]
[1749056098853,1.420721,105380.0,105370.0,0.64104]
[1749056099292,1.420721,105380.0,105370.0,0.65664]
[1749056099514,1.42960274,105380.0,105370.0,0.65664]
[1749056099723,1.420721,105380.0,105370.0,0.65664]
[1749056099939,0.34,105380.0,105370.0,0.64104]
[1749056100144,1.420721,105380.0,105370.0,0.64104]
[1749056102124,1.420721,105380.0,105370.0,0.67204]
[1749056102334,1.420721,105380.0,105370.0,0.65644]
[1749056105230,0.34,105380.0,105370.0,0.65644]
[1749056105461,1.420721,105380.0,105370.0,0.65644]
[1749056106819,1.420721,105380.0,105370.0,0.67184]
[1749056107283,1.420721,105380.0,105370.0,0.65644]
[1749056107728,1.420721,105380.0,105370.0,0.64104]
[1749056108394,1.420721,105380.0,105370.0,0.65624]
[1749056109712,1.420721,105380.0,105370.0,0.86096]
[1749056110361,1.420721,105380.0,105370.0,0.84576]
[1749056111052,1.420721,105380.0,105370.0,1.00204]
[1749056112131,0.34,105380.0,105370.0,1.00204]
[1749056112358,1.420721,105380.0,105370.0,1.00204]
[1749056113787,1.420721,105380.0,105370.0,0.80472]
[1749056114008,1.420721,105380.0,105370.0,1.002]
[1749056114839,1.420721,105380.0,105370.0,1.402]
[1749056115925,1.420721,105380.0,105370.0,1.417]
[1749056117337,1.420721,105380.0,105370.0,1.402]
[1749056117543,0.34,105380.0,105370.0,1.402]
[1749056117747,1.420721,105380.0,105370.0,1.402]
[1749056123096,1.420721,105380.0,105370.0,1.462]
[1749056125561,1.435721,105380.0,105370.0,1.46196]
[1749056125818,1.9926815,105380.0,105370.0,0.86472]
[1749056126033,2.00156752,105380.0,105370.0,0.90572]
[1749056126271,1.9926815,105380.0,105370.0,1.06196]
[1749056126484,1.9926815,105380.0,105370.0,0.86472]
[1749056126699,1.9926815,105380.0,105370.0,1.06196]
[1749056126917,2.0389154,105380.0,105370.0,1.06196]
[1749056127128,2.0478019,105380.0,105370.0,1.06196]
[1749056127363,2.05668838,105380.0,105370.0,1.06196]
[1749056127580,2.06557487,105380.0,105370.0,1.06196]
[1749056127984,2.0478019,105380.0,105370.0,1.06196]
[1749056128417,2.06557488,105380.0,105370.0,1.06196]
[1749056128626,2.0478019,105380.0,105370.0,1.06196]
[1749056128851,2.1525427,105380.0,105370.0,0.60572]
[1749056129053,2.1436562,105380.0,105370.0,0.76196]
[1749056129699,2.16142935,105380.0,105370.0,0.76196]
[1749056130356,2.17920251,105380.0,105370.0,0.76196]
[1749056130572,2.17920252,105380.0,105370.0,0.76196]
[1749056130775,2.16142935,105380.0,105370.0,0.76196]
[1749056130985,2.1792025,105380.0,105370.0,0.76196]
[1749056131186,2.17031592,105380.0,105370.0,0.76196]
[1749056131404,2.17031591,105380.0,105370.0,0.76196]
[1749056131612,2.16142935,105380.0,105370.0,0.76196]
[1749056132022,2.17920242,105380.0,105370.0,0.76196]
[1749056132223,2.16142935,105380.0,105370.0,0.76196]
[1749056132474,2.17031588,105380.0,105370.0,0.76196]
[1749056132681,2.17920242,105380.0,105370.0,0.76196]
[1749056133117,2.17031588,105380.0,105370.0,0.76196]
[1749056133330,2.16142935,105380.0,105370.0,0.76196]
[1749056133552,2.17920242,105380.0,105370.0,0.76196]
[1749056133765,2.17920241,105380.0,105370.0,0.76196]
[1749056134003,2.16142935,105380.0,105370.0,0.76196]
[1749056134212,0.54034785,105380.0,105370.0,0.76196]
[1749056134419,2.17920241,105380.0,105370.0,0.76196]
[1749056134619,2.16142935,105380.0,105370.0,0.76196]
[1749056135098,2.17031588,105380.0,105370.0,0.76196]
[1749056135317,2.16142935,105380.0,105370.0,0.76196]
[1749056135522,2.17031588,105380.0,105370.0,0.76196]
[1749056135735,2.16142935,105380.0,105370.0,0.76196]
[1749056136207,2.17920241,105380.0,105370.0,0.76196]
[1749056136658,2.17920244,105380.0,105370.0,0.56472]
[1749056136879,3.89299522,105380.0,105350.0,0.3]
[1749056137116,1.9610815,105360.0,105350.0,0.3]
[1749056137350,1.9772815,105360.0,105350.0,0.6]
[1749056137546,1.436921,105360.0,105350.0,0.6]
[1749056137781,1.9772815,105360.0,105350.0,0.6]
[1749056137999,1.9772815,105360.0,105350.0,0.602]
[1749056138000,1.451921,105360.0,105350.0,0.602]
[1749056138220,1.451921,105360.0,105350.0,0.75844]
[1749056138439,1.451921,105360.0,105350.0,0.75644]
[1749056138858,1.451921,105360.0,105350.0,0.75648]
[1749056139071,1.9922815,105360.0,105350.0,0.302]
[1749056139281,1.1113673,105360.0,105350.0,0.45848]
[1749056139958,1.1113673,105360.0,105350.0,0.46048]
[1749056140983,1.1113673,105360.0,105350.0,0.304]
[1749056141183,1.4513673,105360.0,105350.0,0.4604]
[1749056141813,1.4513673,105360.0,105350.0,0.304]
[1749056142021,1.4513673,105360.0,105350.0,0.46036]
[1749056144191,1.4513673,105360.0,105350.0,0.70612]
[1749056146242,1.4113673,105360.0,105350.0,0.70612]
[1749056146478,1.4201673,105360.0,105350.0,0.70612]
[1749056151795,1.4201673,105360.0,105350.0,0.72192]
[1749056152017,1.5478216,105360.0,105350.0,0.50876]
[1749056152254,1.55670995,105360.0,105350.0,0.50876]
[1749056152475,1.5478216,105360.0,105350.0,0.706]
[1749056152924,1.5478216,105360.0,105350.0,0.406]
[1749056153368,1.52559874,105360.0,105350.0,0.402]
[1749056153572,1.5078216,105360.0,105350.0,0.462]
[1749056153812,1.53448732,105360.0,105350.0,0.462]
[1749056154023,1.51671017,105360.0,105350.0,0.462]
[1749056154236,1.51671017,105360.0,105350.0,0.26476]
[1749056154237,1.55406674,105360.0,105350.0,0.26476]
[1749056154452,1.56295532,105360.0,105350.0,0.462]
[1749056154661,1.54517817,105360.0,105350.0,0.462]
[1749056154877,1.57184424,105360.0,105350.0,0.462]
[1749056155097,1.56295553,105360.0,105350.0,0.462]
[1749056155386,1.57184424,105360.0,105350.0,0.462]
[1749056155611,1.56395553,105360.0,105350.0,0.462]
[1749056155841,1.58173296,105360.0,105350.0,0.462]
[1749056156067,1.56495553,105360.0,105350.0,0.462]
[1749056156498,1.58273296,105360.0,105350.0,0.26476]
[1749056156717,1.56495553,105360.0,105350.0,0.46204]
[1749056157832,1.58273297,105360.0,105350.0,0.46204]
[1749056158031,1.57384425,105360.0,105350.0,0.46204]
[1749056158249,1.56495553,105360.0,105350.0,0.46204]
[1749056158706,1.57384425,105360.0,105350.0,0.46204]
[1749056158930,1.56495553,105360.0,105350.0,0.46204]
[1749056159390,1.58273297,105360.0,105350.0,0.46204]
[1749056159630,1.59162169,105360.0,105350.0,0.46204]
[1749056160302,1.58273297,105360.0,105350.0,0.46204]
[1749056160526,1.54273297,105360.0,105350.0,0.46204]
[1749056161626,1.55162169,105360.0,105350.0,0.46204]
[1749056161845,1.54273297,105360.0,105350.0,0.46204]
[1749056162069,1.55162169,105360.0,105350.0,0.46204]
[1749056162296,1.57828785,105360.0,105350.0,0.46204]
[1749056162512,1.56051041,105360.0,105350.0,0.46204]
[1749056163043,1.57828812,105360.0,105350.0,0.46204]
[1749056163472,1.56051041,105360.0,105350.0,0.46204]
[1749056163692,1.58495476,105360.0,105350.0,0.46204]
[1749056163918,1.56051041,105360.0,105350.0,0.46204]
[1749056164141,1.57828812,105360.0,105350.0,0.46204]
[1749056164364,1.59606583,105360.0,105350.0,0.46204]
[1749056164794,1.57828812,105360.0,105350.0,0.46204]
[1749056165231,1.58495476,105360.0,105350.0,0.46204]
[1749056165698,1.57828812,105360.0,105350.0,0.46204]
[1749056166396,1.58717697,105360.0,105350.0,0.46204]
[1749056166614,1.57828812,105360.0,105350.0,0.46204]
[1749056166856,1.59606583,105360.0,105350.0,0.46204]
[1749056167071,1.60273247,105360.0,105350.0,0.46204]
[1749056167327,1.5916214,105360.0,105350.0,0.46204]
[1749056167553,1.54495476,105360.0,105350.0,0.46204]
[1749056168422,1.5516214,105360.0,105350.0,0.46204]
[1749056168848,1.55828804,105360.0,105350.0,0.46204]
[1749056169061,1.5516214,105360.0,105350.0,0.46204]
[1749056169509,1.55828804,105360.0,105350.0,0.46204]
[1749056169746,1.57606575,105360.0,105350.0,0.46204]
[1749056169964,1.5516214,105360.0,105350.0,0.30576]
[1749056170177,1.5516214,105360.0,105350.0,0.46204]
[1749056170390,1.55828804,105360.0,105350.0,0.46204]
[1749056170654,1.5516214,105360.0,105350.0,0.46204]
[1749056170875,1.55828804,105360.0,105350.0,0.46204]
[1749056171090,1.5516214,105360.0,105350.0,0.46204]
[1749056171536,1.5582883,105360.0,105350.0,0.46204]
[1749056171755,1.5516214,105360.0,105350.0,0.46204]
[1749056171980,1.57606671,105360.0,105350.0,0.46204]
[1749056172194,1.5516214,105360.0,105350.0,0.46204]
[1749056172427,1.56939981,105360.0,105350.0,0.46204]
[1749056172653,1.5516214,105360.0,105350.0,0.46204]
[1749056172876,1.57606671,105360.0,105350.0,0.46204]
[1749056173105,1.5582883,105360.0,105350.0,0.46204]
[1749056173323,1.5516214,105360.0,105350.0,0.46204]
[1749056173771,1.5582883,105360.0,105350.0,0.46204]
[1749056173982,1.5516214,105360.0,105350.0,0.46204]
[1749056174172,1.5582883,105360.0,105350.0,0.46204]
[1749056174437,1.5516214,105360.0,105350.0,0.46204]
[1749056174674,1.5182883,105360.0,105350.0,0.46204]
[1749056175780,1.5249552,105360.0,105350.0,0.46204]
[1749056176015,1.5182883,105360.0,105350.0,0.30576]
[1749056176271,2.05101757,105360.0,105330.0,0.40694096]
[1749056176499,1.0801673,105340.0,105330.0,0.30004789]
[1749056176730,1.5482216,105340.0,105330.0,0.15632789]
[1749056176955,1.56600262,105340.0,105330.0,0.15632789]
[1749056177178,1.5482216,105340.0,105330.0,0.15632789]
[1749056177392,1.5319216,105340.0,105330.0,0.15632789]
[1749056177607,1.5160216,105340.0,105330.0,0.15632789]
[1749056178356,1.53380258,105340.0,105330.0,0.15632789]
[1749056178572,1.53380258,105340.0,105330.0,0.15732789]
[1749056178787,1.5160216,105340.0,105330.0,0.15732789]
[1749056179197,1.53380257,105340.0,105330.0,0.15732789]
[1749056179409,1.5160216,105340.0,105330.0,0.15732789]
[1749056179852,1.52268948,105340.0,105330.0,0.15732789]
[1749056180089,1.5160216,105340.0,105330.0,0.15732789]
[1749056180306,1.54511087,105340.0,105330.0,0.15732789]
[1749056180512,1.57641087,105340.0,105330.0,0.15732789]
[1749056180723,1.60488587,105340.0,105330.0,0.15732789]
[1749056180956,1.60085995,105340.0,105330.0,0.15732789]
[1749056181164,1.60488587,105340.0,105330.0,0.15732789]
[1749056181377,1.61303495,105340.0,105330.0,0.15732789]
[1749056181580,1.57789202,105340.0,105330.0,0.15732789]
[1749056181795,1.56408587,105340.0,105330.0,0.15732789]
[1749056182666,1.58853498,105340.0,105330.0,0.15632789]
[1749056183092,1.57175381,105340.0,105330.0,0.15632789]
[1749056183303,1.55625381,105340.0,105330.0,0.15632789]
[1749056183981,1.55725381,105340.0,105330.0,0.15632789]
[1749056184168,1.55725381,105340.0,105330.0,0.40212789]
[1749056184838,1.55058587,105340.0,105330.0,0.40212789]
[1749056186485,1.53558587,105340.0,105330.0,0.40212789]
[1749056186948,1.57558587,105340.0,105330.0,0.40212789]
[1749056187171,0.49541857,105340.0,105330.0,0.40212789]
[1749056187414,1.5464966,105340.0,105330.0,0.40212789]
[1749056187644,1.5464966,105340.0,105330.0,0.43422789]
[1749056187645,0.4378543,105340.0,105330.0,0.43422789]
[1749056187895,0.4378543,105340.0,105330.0,0.73422789]
[1749056187896,0.88208365,105340.0,105330.0,0.73422789]
[1749056189595,0.84208365,105340.0,105330.0,0.73422789]
[1749056197313,0.80208365,105340.0,105330.0,0.73422789]
[1749056201241,0.80208365,105340.0,105330.0,0.73418789]
[1749056204336,0.76208365,105340.0,105330.0,0.73418789]
[1749056208919,0.222,105340.0,105330.0,0.73418789]
[1749056209187,0.76208365,105340.0,105330.0,0.73418789]
[1749056209859,0.222,105340.0,105330.0,0.73418789]
[1749056210089,0.76208365,105340.0,105330.0,0.73418789]
[1749056210305,0.222,105340.0,105330.0,1.03418789]
[1749056210531,0.76208365,105340.0,105330.0,1.03418789]
[1749056211387,0.72208365,105340.0,105330.0,1.03418789]
[1749056218546,0.54208365,105340.0,105330.0,1.03418789]
[1749056218977,0.002,105340.0,105330.0,1.03418789]
[1749056219420,0.00124,105340.0,105330.0,1.03418789]
[1749056221464,0.54132365,105340.0,105330.0,1.03418789]
[1749056221701,0.00124,105340.0,105330.0,1.03418789]
[1749056223457,0.54132365,105340.0,105330.0,1.03418789]
[1749056225176,0.00124,105340.0,105330.0,1.03418789]
[1749056225403,0.54132365,105340.0,105330.0,1.03418789]
[1749056225626,0.50132365,105340.0,105330.0,1.03418789]
[1749056227491,0.34,105350.0,105330.0,1.03418789]
[1749056227722,0.34,105350.0,105340.0,0.0317]
[1749056228852,0.88108365,105350.0,105340.0,0.0317]
[1749056229253,0.88008365,105350.0,105340.0,0.0317]
[1749056229710,0.34,105350.0,105340.0,0.0317]
[1749056229955,0.88008365,105350.0,105340.0,0.0317]
[1749056230182,0.88108365,105350.0,105340.0,0.0317]
[1749056230403,0.88108365,105350.0,105340.0,0.07266]
[1749056230846,0.88208365,105350.0,105340.0,0.07266]
[1749056232705,0.84208365,105350.0,105340.0,0.07266]
[1749056232917,0.54208365,105350.0,105340.0,0.07266]
[1749056234552,0.54208365,105350.0,105340.0,0.22886]
[1749056235153,0.54208365,105350.0,105340.0,0.43366]
[1749056235608,0.54208365,105350.0,105340.0,0.2365]
[1749056235838,1.00853795,105350.0,105340.0,0.24576]
[1749056236064,1.05808809,105350.0,105340.0,0.40196]
[1749056236282,1.05809012,105350.0,105340.0,0.24576]
[1749056236501,1.00853795,105350.0,105340.0,0.40196]
[1749056236944,1.02628959,105350.0,105340.0,0.40196]
[1749056237164,0.4684543,105350.0,105340.0,0.40196]
[1749056237379,1.00853795,105350.0,105340.0,0.40196]
[1749056239621,0.96853795,105350.0,105340.0,0.40196]
[1749056241208,0.98629624,105350.0,105340.0,0.2048]
[1749056241428,0.98629614,105350.0,105340.0,0.40196]
[1749056241615,0.96853795,105350.0,105340.0,0.40196]
[1749056242259,0.98629613,105350.0,105340.0,0.40196]
[1749056242462,0.96853795,105350.0,105340.0,0.40196]
[1749056242870,0.95333795,105350.0,105340.0,0.40196]
[1749056243240,0.93793795,105350.0,105340.0,0.40196]
[1749056243464,0.97129596,105350.0,105340.0,0.40196]
[1749056243692,0.96903795,105350.0,105340.0,0.40196]
[1749056244435,0.98679594,105350.0,105340.0,0.40196]
[1749056244900,0.96903795,105350.0,105340.0,0.40196]
[1749056246858,0.92903795,105350.0,105340.0,0.40196]
[1749056247287,0.94679606,105350.0,105340.0,0.40196]
[1749056247494,0.92903795,105350.0,105340.0,0.40196]
[1749056248139,0.94679641,105350.0,105340.0,0.40196]
[1749056248346,0.92903795,105350.0,105340.0,0.40196]
[1749056249903,0.94679615,105350.0,105340.0,0.40196]
[1749056250118,0.92903795,105350.0,105340.0,0.40196]
[1749056250788,0.94679551,105350.0,105340.0,0.40196]
[1749056251056,0.92903795,105350.0,105340.0,0.40196]
[1749056251898,0.94679483,105350.0,105340.0,0.40196]
[1749056252773,0.96455098,105350.0,105340.0,0.40196]
[1749056252976,0.94679483,105350.0,105340.0,0.24576]
[1749056253420,0.94679483,105350.0,105340.0,0.40196]
[1749056253891,0.90679483,105350.0,105340.0,0.40196]
[1749056254296,0.9245494,105350.0,105340.0,0.40196]
[1749056254517,0.90679483,105350.0,105340.0,0.40196]
[1749056255877,0.92454853,105350.0,105340.0,0.40196]
[1749056256087,0.90679483,105350.0,105340.0,0.40196]
[1749056256548,0.92454742,105350.0,105340.0,0.40196]
[1749056256773,0.92454743,105350.0,105340.0,0.40196]
[1749056257022,0.90679483,105350.0,105340.0,0.40196]
[1749056257433,0.90679483,105350.0,105340.0,0.46196]
[1749056257861,0.92454596,105350.0,105340.0,0.46196]
[1749056258090,0.90679483,105350.0,105340.0,0.46196]
[1749056258665,0.89129483,105350.0,105340.0,0.46196]
[1749056259258,1.46558005,105350.0,105340.0,0.2648]
[1749056259465,1.46558005,105350.0,105340.0,0.46196]
[1749056259466,1.44783258,105350.0,105340.0,0.46196]
[1749056260961,1.40783258,105350.0,105340.0,0.46196]
[1749056262722,1.40741949,105350.0,105340.0,0.46196]
[1749056263618,1.94768019,105350.0,105340.0,0.46196]
[1749056264503,1.40741949,105350.0,105340.0,0.46196]
[1749056265416,1.39131949,105350.0,105340.0,0.46196]
[1749056265634,1.42046181,105350.0,105340.0,0.46196]
[1749056265847,1.40268193,105350.0,105340.0,0.46196]
[1749056266076,1.40934939,105350.0,105340.0,0.46196]
[1749056266295,1.42712929,105350.0,105340.0,0.46196]
[1749056266512,1.40934939,105350.0,105340.0,0.46196]
[1749056266728,1.41601685,105350.0,105340.0,0.46196]
[1749056266940,1.40934939,105350.0,105340.0,0.46196]
[1749056267157,1.42712929,105350.0,105340.0,0.46196]
[1749056267351,1.40934939,105350.0,105340.0,0.46196]
[1749056267766,1.40936311,105350.0,105340.0,0.46196]
[1749056267974,1.21640004,105350.0,105340.0,0.46196]
[1749056268402,1.23417996,105350.0,105340.0,0.46196]
[1749056268610,1.21640004,105350.0,105340.0,0.46196]
[1749056269056,1.23417996,105350.0,105340.0,0.46196]
[1749056269489,1.21640004,105350.0,105340.0,0.46196]
[1749056269706,1.20080004,105350.0,105340.0,0.46196]
[1749056269913,1.54080004,105350.0,105340.0,0.46196]
[1749056270420,1.55857993,105350.0,105340.0,0.46196]
[1749056270637,1.5652474,105350.0,105340.0,0.46196]
[1749056270872,1.56995586,105350.0,105340.0,0.46196]
[1749056271117,1.55217596,105350.0,105340.0,0.46196]
[1749056271499,1.56995585,105350.0,105340.0,0.46196]
[1749056271682,1.55884342,105350.0,105340.0,0.46196]
[1749056272080,1.54080004,105350.0,105340.0,0.46196]
[1749056272361,1.55217576,105350.0,105340.0,0.46196]
[1749056272998,1.56995566,105350.0,105340.0,0.46196]
[1749056273214,1.55884322,105350.0,105340.0,0.46196]
[1749056273436,1.55217576,105350.0,105340.0,0.46196]
[1749056273870,1.56995566,105350.0,105340.0,0.46196]
[1749056274119,1.55217576,105350.0,105340.0,0.46196]
[1749056274342,1.55884322,105350.0,105340.0,0.46196]
[1749056275015,1.5252474,105350.0,105340.0,0.46196]
[1749056275241,1.5074675,105350.0,105340.0,0.46196]
[1749056275815,1.53191485,105350.0,105340.0,0.46196]
[1749056276050,1.5074675,105350.0,105340.0,0.46196]
[1749056276274,1.52524739,105350.0,105340.0,0.46196]
[1749056276551,1.53191485,105350.0,105340.0,0.46196]
[1749056276748,1.5074675,105350.0,105340.0,0.46196]
[1749056276965,1.5252474,105350.0,105340.0,0.46196]
[1749056277160,1.54302731,105350.0,105340.0,0.46196]
[1749056277361,1.5252474,105350.0,105340.0,0.46196]
[1749056277577,1.53191485,105350.0,105340.0,0.46196]
[1749056277790,1.53662345,105350.0,105340.0,0.46196]
[1749056278026,1.54329091,105350.0,105340.0,0.46196]
[1749056278232,1.53662345,105350.0,105340.0,0.46196]
[1749056279073,1.55440335,105350.0,105340.0,0.46196]
[1749056279301,1.5432909,105350.0,105340.0,0.46196]
[1749056279820,1.54329091,105350.0,105340.0,0.46196]
[1749056280042,1.55440334,105350.0,105340.0,0.46196]
[1749056280255,1.53662345,105350.0,105340.0,0.46196]
[1749056280673,1.55440333,105350.0,105340.0,0.46196]
[1749056280873,1.53662345,105350.0,105340.0,0.46196]
[1749056281087,1.55440335,105350.0,105340.0,0.46196]
[1749056281318,1.53662345,105350.0,105340.0,0.46196]
[1749056281532,1.54329091,105350.0,105340.0,0.46196]
[1749056281741,1.53662345,105350.0,105340.0,0.46196]
[1749056281944,1.4852474,105350.0,105340.0,0.46196]
[1749056282990,1.50969475,105350.0,105340.0,0.46196]
[1749056283238,1.49191486,105350.0,105340.0,0.46196]
[1749056283595,1.50969476,105350.0,105340.0,0.46196]
[1749056284286,1.50302731,105350.0,105340.0,0.46196]
[1749056284459,1.52080722,105350.0,105340.0,0.46196]
[1749056284718,1.50302731,105350.0,105340.0,0.46196]
[1749056284921,1.52080722,105350.0,105340.0,0.46196]
[1749056285274,1.53218433,105350.0,105340.0,0.46196]
[1749056285520,1.51440442,105350.0,105340.0,0.46196]
[1749056286311,0.34,105340.0,105330.0,4.789e-05]
[1749056286540,3.74151856,105340.0,105330.0,0.24576789]
[1749056286741,2.13211357,105340.0,105330.0,0.40192789]
[1749056287766,2.13211357,105340.0,105330.0,0.20484789]
[1749056287979,2.10698206,105340.0,105330.0,0.20484789]
[1749056288204,2.10031351,105340.0,105330.0,0.20484789]
[1749056288420,2.11808502,105340.0,105330.0,0.40192789]
[1749056288624,2.12813735,105340.0,105330.0,0.40192789]
[1749056289053,2.08813735,105340.0,105330.0,0.40192789]
[1749056289258,2.09480589,105340.0,105330.0,0.40192789]
[1749056289472,2.11258868,105340.0,105330.0,0.40192789]
[1749056289671,2.09480589,105340.0,105330.0,0.40192789]
[1749056289870,2.10147442,105340.0,105330.0,0.40192789]
[1749056290087,2.08344005,105340.0,105330.0,0.40192789]
[1749056290309,2.05114005,105340.0,105330.0,0.40192789]
[1749056290532,2.05114005,105340.0,105330.0,0.41742789]
[1749056290750,1.21087935,105340.0,105330.0,0.43302789]
[1749056290958,1.11502505,105340.0,105330.0,0.43302789]
[1749056291179,1.45502505,105340.0,105330.0,0.43302789]
[1749056293204,0.91466225,105340.0,105330.0,0.43302789]
[1749056294106,0.91466225,105340.0,105330.0,0.73302789]
[1749056296318,0.87466225,105340.0,105330.0,0.73302789]
[1749056297796,0.90342646,105340.0,105330.0,0.73302789]
[1749056298019,0.87466225,105340.0,105330.0,0.73302789]
[1749056298228,0.87466225,105340.0,105330.0,1.03302789]
[1749056298448,0.87466225,105340.0,105330.0,1.09302789]
[1749056300028,0.33450365,105340.0,105330.0,1.09302789]
[1749056301386,0.33450365,105340.0,105330.0,1.58888219]
[1749056302470,0.60681021,105350.0,105330.0,1.58888219]
[1749056302471,0.06665161,105350.0,105330.0,1.58888219]
[1749056302708,0.40665161,105350.0,105340.0,0.0306]
[1749056302928,0.94681021,105350.0,105340.0,0.0306]
[1749056303360,0.90681021,105350.0,105340.0,0.0306]
[1749056310453,0.8801586,105350.0,105340.0,0.0306]
[1749056314690,0.34,105350.0,105340.0,0.0306]
[1749056314914,0.8801586,105350.0,105340.0,0.0306]
[1749056315557,0.8801586,105350.0,105340.0,0.03297307]
[1749056315558,0.87998784,105350.0,105340.0,0.03297307]
[1749056316187,0.87998784,105350.0,105340.0,0.4306]
[1749056318585,0.83998784,105350.0,105340.0,0.58668]
[1749056319201,0.83998784,105350.0,105340.0,0.18668]
[1749056322015,0.83998784,105350.0,105340.0,0.22756]
[1749056323309,0.83998784,105350.0,105340.0,0.22956]
[1749056323747,0.83998784,105350.0,105340.0,0.62956]
[1749056324171,0.3,105350.0,105340.0,0.62956]
[1749056324376,0.83998784,105350.0,105340.0,0.62956]
[1749056325639,0.79998784,105350.0,105340.0,0.62956]
[1749056326678,0.79998784,105350.0,105340.0,0.22956]
[1749056326897,0.79998784,105350.0,105340.0,0.43432]
[1749056327379,0.79998784,105350.0,105340.0,0.83432]
[1749056332619,0.75998784,105350.0,105340.0,0.83432]
[1749056333420,0.53998784,105350.0,105340.0,0.83432]
[1749056334561,1.03348784,105360.0,105350.0,0.6151]
[1749056334767,1.91347568,105360.0,105350.0,0.6151]
[1749056335445,1.91347568,105360.0,105350.0,0.6309]
[1749056335859,1.91347568,105360.0,105350.0,0.6151]